bitfinex-derivatives/quotes_ETHF0:USTF0_20251012
["timestamp","ask_amount","ask_price","bid_price","bid_amount"]
[1760286557205,2.57789839,4074.7,4074.6,0.44148]
[1760286557603,0.00290997,4074.7,4074.6,0.44148]
[1760286557805,3.22286794,4074.7,4074.5,0.00286693]
[1760286558112,3.2741,4074.6,4074.5,0.00286693]
[1760286558411,6.05257797,4074.6,4074.5,0.00286693]
[1760286567518,2.77847797,4074.6,4074.5,0.00286693]
[1760286567920,6.05257797,4074.6,4074.5,3.05306693]
[1760286568119,2.77847797,4074.6,4074.5,6.26086693]
[1760286568311,0.00290997,4074.7,4074.6,3.49168]
[1760286569515,2.63369309,4074.7,4074.6,3.0502]
[1760286569720,0.00290997,4074.7,4074.6,3.49168]
[1760286576516,3.57458,4074.6,4074.5,3.21066693]
[1760286576916,6.33415812,4074.6,4074.5,3.21066693]
[1760286577724,6.33415812,4074.6,4073.7,6.2845872]
[1760286577725,3.57464,4074.1,4074.0,3.2078]
[1760286577920,2.75957812,4074.6,4074.1,3.0677]
[1760286578124,0.00290997,4074.7,4074.0,4.4988]
[1760286578125,0.00290997,4074.7,4074.6,3.0677]
[1760286578720,0.00290997,4074.7,4074.6,3.07084052]
[1760286579232,2.84322003,4074.7,4074.6,3.07084052]
[1760286579430,5.97632003,4074.7,4074.6,0.00314052]
[1760286580020,3.1331,4074.1,4074.0,3.2078]
[1760286580524,5.68582228,4074.1,4074.0,3.2078]
[1760286581023,5.68582228,4074.1,4074.0,3.21040999]
[1760286581529,2.55272228,4074.1,4074.0,3.07030999]
[1760286581939,5.68582228,4074.1,4074.0,0.00260999]
[1760286582230,3.57469,4073.6,4073.5,3.2078]
[1760286582620,6.39011569,4073.6,4073.5,3.2078]
[1760286582819,0.44161,4073.5,4073.3,0.44162]
[1760286583032,0.44161,4073.5,4073.4,3.0677]
[1760286583233,3.1331,4073.6,4073.4,3.50931]
[1760286583437,2.78405862,4073.5,4073.4,0.44161]
[1760286583726,0.44161,4073.5,4073.3,0.00179902]
[1760286583931,0.44161,4073.5,4073.4,3.0677]
[1760286584336,3.1331,4074.1,4073.4,3.50931]
[1760286584634,2.80968899,4074.0,4073.4,3.50931]
[1760286584833,3.1331,4073.5,4073.4,3.0677]
[1760286585035,0.44158,4073.7,4073.3,0.00179902]
[1760286585234,2.80968899,4073.5,4073.4,3.50931]
[1760286585429,2.94089578,4073.6,4073.4,3.50931]
[1760286585732,0.4416,4073.6,4073.5,4.79906081]
[1760286586031,6.09293423,4073.6,4073.5,1.70556081]
[1760286586233,3.53201,4073.4,4073.3,1.70735983]
[1760286586535,3.00254423,4073.4,4073.3,3.09529902]
[1760286586722,3.00254423,4073.4,4073.3,0.00179902]
[1760286586928,3.00254423,4073.4,4072.6,1.70556081]
[1760286586929,0.44169,4072.7,4072.6,1.70556081]
[1760286587140,3.5321,4072.6,4072.5,3.2078]
[1760286587528,3.53214,4072.2,4071.9,4.91336081]
[1760286587723,3.53214,4072.2,4071.4,5.22078786]
[1760286587724,3.53223,4071.5,4071.4,3.2078]
[1760286587938,3.53396596,4071.5,4071.4,3.21028228]
[1760286588132,6.2712784,4071.5,4071.4,3.21028228]
[1760286589738,2.7390484,4071.5,4071.4,6.30378228]
[1760286590429,5.8294484,4071.5,4071.4,3.21028228]
[1760286590631,2.7390484,4071.5,4071.4,6.30378228]
[1760286590840,0.00173596,4071.5,4071.4,6.30378228]
[1760286591032,5.83146773,4071.5,4071.4,3.21028228]
[1760286592436,2.74106773,4071.5,4071.4,12.58836948]
[1760286592642,0.00173596,4071.5,4071.4,12.58836948]
[1760286597538,3.0904,4072.3,4071.4,12.58836948]
[1760286597539,3.2078,4073.2,4072.2,1.10436]
[1760286597751,3.0904,4073.1,4072.7,3.2078]
[1760286598044,2.575422,4072.8,4072.7,6.743]
[1760286598247,0.44168,4072.9,4072.7,6.743]
[1760286598453,2.575422,4072.8,4072.7,6.743]
[1760286598657,2.57821883,4072.8,4072.7,6.743]
[1760286598856,0.00279683,4072.8,4072.7,6.743]
[1760286599059,2.84724416,4072.8,4072.7,6.743]
[1760286599754,5.93764416,4072.8,4072.7,3.2078]
[1760286599961,5.93764416,4072.8,4072.2,4.19786]
[1760286599962,0.44171,4072.6,4072.4,0.44173]
[1760286600259,0.00279683,4072.8,4072.7,3.5352]
[1760286600557,3.0904,4074.2,4073.7,0.44158]
[1760286600756,4.4413,4075.0,4074.2,0.44153]
[1760286600962,2.69775506,4074.4,4074.1,3.0935]
[1760286601255,2.69775506,4074.5,4073.9,3.0935]
[1760286601460,0.01075527,4074.6,4074.5,4.8554]
[1760286601655,0.00258735,4074.6,4074.5,3.53807717]
[1760286602061,0.00258735,4074.6,4074.5,4.85847717]
[1760286602764,5.31498147,4076.1,4075.1,3.44924]
[1760286602957,5.31498147,4076.1,4075.1,12.9416272]
[1760286603158,3.2078,4076.1,4075.1,12.9416272]
[1760286603354,6.3342,4076.1,4075.1,12.9416272]
[1760286603661,12.96658959,4075.2,4075.1,6.2156]
[1760286603852,10.30215027,4075.2,4075.1,6.2156]
[1760286605360,13.06734187,4075.2,4075.1,6.2156]
[1760286605659,10.30215027,4075.2,4075.1,6.2156]
[1760286606360,10.30215027,4075.2,4074.5,1.32347717]
[1760286606361,3.56788,4074.7,4074.5,0.00307717]
[1760286606566,3.1264,4074.6,4074.5,0.00307717]
[1760286606759,8.99637625,4074.6,4074.5,0.00307717]
[1760286607159,8.99637625,4074.6,4073.5,3.2078]
[1760286607160,0.4416,4073.7,4073.5,3.2078]
[1760286607458,3.1264,4074.4,4073.6,3.0078]
[1760286607459,0.44158,4073.8,4073.6,3.0078]
[1760286607662,7.5629,4074.5,4072.9,3.2078]
[1760286607663,3.1264,4073.3,4072.9,3.2078]
[1760286607962,3.1264,4073.3,4072.4,3.2078]
[1760286608160,0.44166,4073.1,4072.9,3.2078]
[1760286608363,3.1264,4073.0,4072.4,3.20991734]
[1760286608662,2.80278031,4073.0,4072.5,3.0078]
[1760286608865,0.4417,4072.7,4072.4,3.20991734]
[1760286609065,3.5681,4072.7,4072.4,3.20991734]
[1760286609257,2.60818471,4072.6,4072.5,3.0078]
[1760286609756,3.1264,4072.9,4072.4,3.65163734]
[1760286609963,3.2078,4073.4,4072.4,3.65163734]
[1760286609964,3.1264,4072.7,4072.5,3.0078]
[1760286610167,3.1264,4073.2,4072.5,3.0078]
[1760286610364,3.1264,4073.2,4072.9,3.2078]
[1760286610664,2.67885534,4073.1,4073.0,3.44946]
[1760286610963,2.64257277,4073.4,4073.2,0.44164]
[1760286611163,2.64257277,4073.4,4073.2,3.44944]
[1760286611361,3.1264,4073.3,4073.0,0.44166]
[1760286611557,2.64257277,4073.4,4073.1,3.0078]
[1760286611759,0.4415,4074.5,4073.4,0.44162]
[1760286611953,3.1264,4074.8,4074.4,3.4493]
[1760286612156,3.1264,4074.8,4074.1,3.2078]
[1760286612157,3.2078,4075.1,4074.8,0.44147]
[1760286612366,10.31215027,4075.2,4075.0,0.44144]
[1760286612661,10.31215027,4075.2,4075.1,3.0078]
[1760286612966,12.94597818,4075.2,4075.1,6.2156]
[1760286613461,10.31215027,4075.2,4075.1,6.2156]
[1760286615961,3.1264,4075.1,4074.6,3.2078]
[1760286616160,12.99938946,4075.2,4074.6,3.2078]
[1760286616363,0.44153,4074.3,4074.1,3.2078]
[1760286616664,3.1264,4074.6,4074.3,0.44152]
[1760286616854,3.1264,4074.6,4074.1,3.2078]
[1760286616855,3.2078,4075.4,4074.1,3.2078]
[1760286617058,1.2287,4076.5,4075.0,0.44144]
[1760286617059,3.2078,4075.6,4075.0,0.44144]
[1760286617263,3.1264,4075.7,4075.1,3.0078]
[1760286617458,3.56777,4075.7,4075.1,3.0078]
[1760286617660,0.44139,4075.6,4075.0,0.44144]
[1760286617858,1.2287,4076.5,4075.0,0.44144]
[1760286617859,3.1264,4076.3,4075.1,3.0078]
[1760286618256,3.1264,4075.8,4075.1,3.0078]
[1760286618463,3.2078,4076.1,4074.7,10.32294275]
[1760286618464,1.10337,4076.0,4074.7,3.2078]
[1760286618677,3.1264,4075.1,4074.7,3.2078]
[1760286618962,3.1264,4075.1,4074.7,3.64928]
[1760286619168,3.1264,4074.9,4074.7,3.64928]
[1760286619465,10.31215027,4075.2,4075.0,0.44144]
[1760286619664,2.81928725,4075.1,4075.0,3.44924]
[1760286619867,2.81928725,4075.1,4074.7,3.2078]
[1760286619868,3.1264,4075.1,4074.7,6.2156]
[1760286620163,0.44151,4074.4,4074.2,3.2078]
[1760286620361,3.1264,4074.3,4074.2,3.2078]
[1760286620564,3.1264,4074.9,4074.3,3.0078]
[1760286620767,2.75800194,4074.7,4074.6,3.0078]
[1760286621059,10.31215027,4075.2,4074.7,0.44148]
[1760286621264,10.31215027,4075.2,4075.1,3.44924]
[1760286621761,10.31215027,4075.2,4074.9,0.44145]
[1760286621967,13.0033809,4075.2,4074.8,0.44147]
[1760286622168,13.0033809,4075.2,4075.0,0.44145]
[1760286622370,13.0033809,4075.2,4074.0,1.2505]
[1760286622371,3.1264,4075.1,4074.6,3.0078]
[1760286622666,13.43855027,4075.2,4075.0,0.44144]
[1760286622866,3.1264,4075.1,4075.0,0.44144]
[1760286623057,2.56139402,4075.1,4075.0,0.44144]
[1760286623569,5.68779402,4075.1,4074.7,3.0078]
[1760286623768,5.68779402,4075.1,4074.8,3.44927]
[1760286624067,5.68779402,4075.1,4074.9,0.44146]
[1760286624268,2.56139402,4075.1,4075.0,3.0078]
[1760286625060,1.10363,4075.0,4074.0,4.4583]
[1760286625365,0.4415,4074.5,4074.0,4.4583]
[1760286625668,2.79210136,4074.4,4074.3,0.44152]
[1760286626066,0.44147,4074.8,4074.0,4.4583]
[1760286626266,0.44148,4074.7,4074.5,3.2078]
[1760286626571,3.1264,4074.6,4073.9,6.2156]
[1760286626767,3.1264,4074.6,4074.0,0.44156]
[1760286627072,3.1264,4074.3,4074.1,0.44154]
[1760286627266,3.1264,4074.3,4074.1,3.44934]
[1760286627462,3.1264,4074.5,4074.1,3.44934]
[1760286627662,3.1264,4074.5,4074.3,0.44152]
[1760286627872,2.79455857,4074.4,4074.3,0.44152]
[1760286628067,2.79455857,4074.4,4074.1,3.0078]
[1760286628263,3.1264,4074.3,4073.9,3.2078]
[1760286628575,3.1264,4074.3,4074.2,0.44153]
[1760286629066,3.1264,4074.0,4073.9,3.2078]
[1760286629272,0.44166,4073.1,4072.9,3.0078]
[1760286629473,1.2287,4074.0,4072.9,3.0078]
[1760286629474,3.1264,4073.6,4073.3,0.44163]
[1760286629674,7.10332715,4074.0,4073.3,3.64943]
[1760286629675,4.3551,4074.0,4073.3,3.64943]
[1760286629969,2.56573954,4073.5,4073.4,3.0078]
[1760286630168,0.44162,4073.5,4073.3,3.2078]
[1760286630358,0.44162,4073.5,4072.7,7.11514275]
[1760286630359,3.2078,4073.7,4072.8,3.2078]
[1760286630565,3.1264,4074.2,4073.4,3.0078]
[1760286630760,2.56573954,4073.5,4073.4,3.44942]
[1760286630964,2.56573954,4073.9,4073.7,0.44159]
[1760286631169,2.71717323,4074.1,4074.0,0.44156]
[1760286631471,6.28511323,4074.2,4073.8,0.44157]
[1760286631667,0.44157,4073.9,4073.6,0.44159]
[1760286631862,3.56798,4073.8,4073.3,3.0078]
[1760286632063,2.62449307,4073.8,4073.6,0.4416]
[1760286632265,3.56798,4073.8,4073.6,0.4416]
[1760286632469,3.1783,4073.6,4073.4,0.44161]
[1760286632665,0.44163,4073.4,4073.1,3.0078]
[1760286632970,5.83229307,4073.8,4073.1,0.44165]
[1760286632971,3.1783,4073.3,4073.1,0.44165]
[1760286633166,2.58724937,4073.3,4073.1,0.44165]
[1760286633373,2.58724937,4073.3,4073.2,3.0172]
[1760286633570,2.58724937,4073.4,4073.2,0.44164]
[1760286633769,0.44162,4073.5,4073.2,3.45884]
[1760286633964,0.44162,4073.5,4073.2,3.0172]
[1760286634166,2.69189075,4073.4,4073.2,3.0172]
[1760286634471,0.44162,4073.5,4073.1,3.0172]
[1760286634669,2.69189075,4073.4,4073.3,0.44163]
[1760286634871,5.87019075,4073.4,4073.3,0.44163]
[1760286635071,3.61992,4073.4,4073.1,0.44164]
[1760286635273,3.61992,4073.4,4072.9,3.0172]
[1760286635274,3.1783,4073.1,4072.9,3.0172]
[1760286635466,3.1783,4073.1,4072.9,3.45887]
[1760286635662,3.1783,4072.9,4072.1,3.0172]
[1760286635865,3.62002,4072.5,4072.1,0.44176]
[1760286636164,4.79732,4072.5,4071.1,6.225]
[1760286636368,0.4418,4071.8,4071.1,6.225]
[1760286636565,3.1783,4071.6,4071.4,0.44183]
[1760286636766,3.1783,4071.5,4071.2,3.0172]
[1760286636968,5.87616469,4071.5,4071.2,3.0172]
[1760286637172,2.69786469,4071.5,4071.4,3.0172]
[1760286637371,2.70063377,4071.5,4071.4,3.01968267]
[1760286637568,0.00276908,4071.5,4071.4,3.01968267]
[1760286638274,3.2078,4072.6,4072.2,3.45894]
[1760286638577,1.1773,4073.5,4072.7,0.44169]
[1760286638872,1.1773,4073.5,4071.9,3.2078]
[1760286638873,3.1783,4072.1,4071.9,3.2078]
[1760286639077,3.1783,4072.0,4071.9,3.2078]
[1760286639275,5.90887334,4072.0,4071.9,3.2078]
[1760286639477,5.90887334,4072.0,4070.5,1.69233272]
[1760286639478,3.1783,4070.9,4070.5,1.69233272]
[1760286639680,3.1783,4069.8,4069.2,7.91733272]
[1760286639867,3.1783,4070.4,4069.7,3.2078]
[1760286640071,6.07171644,4070.9,4070.8,0.4419]
[1760286640375,3.29290666,4071.3,4070.8,6.6669]
[1760286640574,3.29290666,4071.3,4071.2,3.45906]
[1760286640575,2.85104666,4071.3,4071.2,3.45906]
[1760286640779,3.2078,4071.9,4071.7,3.459]
[1760286640977,10.302,4072.0,4071.8,0.44179]
[1760286641176,10.302,4072.0,4071.4,3.2078]
[1760286641372,3.6201,4071.8,4071.4,3.2078]
[1760286641573,3.1783,4071.8,4071.4,3.2078]
[1760286641774,10.302,4072.0,4071.8,0.44179]
[1760286641981,10.302,4072.0,4071.8,3.45899]
[1760286642378,3.1783,4071.9,4071.4,3.2078]
[1760286642577,0.44182,4071.6,4071.4,3.2078]
[1760286642778,3.1783,4071.5,4071.4,3.2078]
[1760286642983,3.116,4071.4,4071.0,0.44188]
[1760286643175,1.1724,4071.0,4070.9,3.2078]
[1760286643377,1.1724,4071.0,4068.8,3.02756805]
[1760286643378,3.55789,4070.9,4070.1,3.2078]
[1760286643573,4.3802,4071.0,4069.5,3.2078]
[1760286643574,3.116,4069.8,4069.5,3.2078]
[1760286643772,0.44196,4070.3,4069.9,0.442]
[1760286644080,2.72282408,4070.0,4069.5,3.2078]
[1760286644273,2.72282408,4070.0,4069.0,1.252]
[1760286644274,2.72282408,4070.0,4069.9,6.2026]
[1760286644475,9.0274,4070.8,4069.9,6.20473839]
[1760286644672,3.116,4070.7,4070.5,3.64973]
[1760286644886,3.5579,4070.9,4070.5,3.64973]
[1760286645184,2.59719182,4070.6,4070.5,3.64973]
[1760286645380,5.71319182,4070.6,4070.5,3.2078]
[1760286645584,0.44196,4070.3,4070.0,3.2078]
[1760286645883,5.67071356,4070.2,4070.0,3.64979]
[1760286646078,3.116,4070.1,4070.0,3.2078]
[1760286646483,5.900024,4070.1,4070.0,3.2078]
[1760286647283,3.55799,4070.0,4069.9,0.00213839]
[1760286647489,4.73039,4070.0,4069.9,0.00213839]
[1760286647682,10.53747964,4070.0,4069.9,0.00213839]
[1760286648585,2.65830131,4070.0,4069.9,0.00213839]
[1760286648784,2.65830131,4070.0,4069.0,3.2078]
[1760286648785,10.07495147,4070.0,4069.0,3.2078]
[1760286649082,3.55809,4069.1,4069.0,3.2078]
[1760286649385,6.29251813,4069.1,4069.0,3.2078]
[1760286649776,2.73442813,4069.1,4069.0,3.6499]
[1760286650075,2.73442813,4069.1,4069.0,6.64697918]
[1760286650076,2.73736652,4069.1,4069.0,6.64697918]
[1760286650685,0.00293839,4069.1,4069.0,6.64697918]
[1760286650988,0.00293839,4069.1,4069.0,3.21007918]
[1760286651189,5.76580464,4069.1,4069.0,0.00227918]
[1760286652585,2.64980464,4069.1,4069.0,0.00227918]
[1760286652788,2.64980464,4069.1,4069.0,2.99707918]
[1760286652980,2.64980464,4069.1,4069.0,6.20487918]
[1760286653683,2.14770717,4069.1,4069.0,7.47007918]
[1760286653879,3.116,4070.4,4069.8,0.442]
[1760286654284,2.68128772,4070.1,4070.0,0.44199]
[1760286654486,3.116,4070.1,4069.9,0.442]
[1760286654680,3.116,4070.1,4069.1,1.10522]
[1760286654681,0.44206,4069.4,4069.1,0.44208]
[1760286654881,0.44208,4069.2,4069.0,3.21007918]
[1760286655189,3.116,4069.1,4069.0,3.21007918]
[1760286655393,5.28633384,4069.1,4069.0,0.00227918]
[1760286655684,0.4422,4068.1,4067.9,3.2078]
[1760286655889,3.116,4068.5,4067.9,3.2078]
[1760286656080,6.3238,4069.1,4068.4,3.2078]
[1760286656275,6.15333122,4068.8,4068.7,0.0364021]
[1760286656488,3.116,4068.8,4068.7,0.03857439]
[1760286656881,2.59521122,4068.8,4068.7,0.48070439]
[1760286657191,3.116,4068.8,4068.7,0.03857439]
[1760286657484,2.64010439,4069.0,4068.8,0.44212]
[1760286657683,2.60209686,4068.8,4068.7,0.03857439]
[1760286657883,3.116,4068.8,4068.7,0.03857439]
[1760286658089,5.88958452,4068.8,4068.7,0.03857439]
[1760286658486,3.116,4068.7,4067.9,3.2078]
[1760286658685,3.116,4068.7,4068.0,0.4422]
[1760286658984,9.13714569,4068.6,4068.4,0.44216]
[1760286659284,3.116,4068.5,4068.4,0.44216]
[1760286659484,2.63764273,4068.7,4068.6,3.43694]
[1760286659683,4.2884,4069.0,4068.4,3.21069864]
[1760286659886,2.63764273,4068.8,4068.7,3.43693]
[1760286660087,2.76860414,4068.9,4068.7,3.43693]
[1760286660287,2.76860414,4068.9,4068.5,1.10536]
[1760286660288,2.76860414,4069.0,4068.9,0.44211]
[1760286660480,3.116,4069.5,4069.3,0.44207]
[1760286660679,3.116,4069.6,4069.4,0.44205]
[1760286660884,3.2078,4069.7,4069.6,3.43683]
[1760286661189,3.2078,4069.7,4069.2,1.10517]
[1760286661190,0.44195,4070.4,4070.0,0.44199]
[1760286661490,3.116,4070.7,4070.0,6.64459]
[1760286661692,2.56079828,4070.1,4070.0,6.64459]
[1760286662081,5.67679828,4070.1,4070.0,3.2078]
[1760286662290,0.44201,4069.8,4069.4,3.2078]
[1760286662488,5.82434328,4070.1,4069.4,3.2078]
[1760286662489,8.81844328,4070.1,4069.4,3.2078]
[1760286662789,2.9941,4070.0,4069.9,0.442]
[1760286662977,2.9941,4069.9,4069.7,0.44201]
[1760286663181,2.58461396,4070.0,4069.9,0.442]
[1760286663182,5.57871396,4070.0,4069.9,0.442]
[1760286663378,2.9941,4070.0,4069.4,6.2091]
[1760286663585,5.57871396,4070.0,4069.4,6.2091]
[1760286663787,2.9941,4069.9,4069.8,0.44201]
[1760286664287,2.9941,4069.9,4069.4,6.2091]
[1760286664288,0.00245124,4070.1,4070.0,3.44329]
[1760286664488,0.00245124,4070.1,4070.0,6.65109]
[1760286664694,1.59555604,4070.1,4070.0,14.96393275]
[1760286664988,10.302,4072.0,4071.8,0.44178]
[1760286665185,10.302,4072.0,4071.9,3.0013]
[1760286665387,10.302,4072.0,4071.8,0.44178]
[1760286665586,5.8065592,4071.9,4071.8,0.44178]
[1760286665888,6.25414861,4071.9,4071.1,6.2091]
[1760286666082,5.71473126,4071.9,4071.1,3.21071144]
[1760286666279,2.72063126,4071.9,4071.5,0.44182]
[1760286666592,2.9941,4071.7,4071.4,0.44183]
[1760286666777,2.9941,4071.7,4071.1,3.21071144]
[1760286666981,1.197,4071.5,4071.1,0.00291144]
[1760286667187,1.63883,4071.5,4071.1,0.44478144]
[1760286667386,2.77395968,4071.4,4071.1,0.00291144]
[1760286667584,0.00251536,4071.9,4071.8,0.44179]
[1760286667790,5.36e-06,4071.9,4071.8,6.65089]
[1760286667987,8.40197536,4072.0,4071.9,3.0013]
[1760286668694,6.56216536,4072.0,4071.9,3.0013]
[1760286668886,6.05400619,4072.0,4071.9,3.0013]
[1760286669082,5.14517619,4072.0,4071.9,3.0013]
[1760286669385,0.00234083,4072.0,4071.9,3.0013]
[1760286669796,0.00234083,4072.0,4071.8,3.64959]
[1760286669797,6.2019,4073.7,4073.4,0.44162]
[1760286670089,2.9941,4073.5,4073.4,0.44162]
[1760286670395,2.9941,4074.1,4074.0,0.44156]
[1760286670586,4.1911,4074.5,4074.4,0.44151]
[1760286670787,2.9941,4074.5,4074.4,0.44151]
[1760286671087,2.70853979,4074.5,4074.4,6.65061]
[1760286671292,0.0031032,4074.5,4074.4,6.65061]
[1760286671591,1e-05,4075.2,4075.1,3.44274]
[1760286671891,1e-05,4075.2,4075.1,3.64924]
[1760286672191,1e-05,4075.2,4075.1,6.2091]
[1760286672391,0.0025552,4075.2,4075.1,6.2091]
[1760286672690,5.2e-06,4075.2,4075.1,6.2091]
[1760286673892,5.2e-06,4075.2,4075.1,3.2078]
[1760286674889,2.73972808,4075.2,4075.1,3.2078]
[1760286675087,5.73382808,4075.2,4075.1,3.2078]
[1760286675287,5.73382808,4075.2,4074.1,3.0013]
[1760286675288,0.44144,4075.1,4074.6,0.44149]
[1760286675592,6.09892006,4075.0,4074.5,3.2078]
[1760286675786,2.9941,4074.9,4074.0,0.00218302]
[1760286675983,2.9941,4075.0,4074.8,3.2078]
[1760286676183,5.2e-06,4075.2,4074.0,3.20998302]
[1760286676184,2.9941,4074.7,4074.0,3.20998302]
[1760286676386,2.6726966,4074.9,4074.3,0.44152]
[1760286676586,5.6667966,4075.0,4074.7,0.44147]
[1760286676786,2.6726966,4074.6,4074.5,3.6493]
[1760286676981,4.1911052,4075.2,4074.5,3.2078]
[1760286676982,2.9941052,4075.2,4074.5,3.2078]
[1760286677187,5.44011698,4075.1,4075.0,0.44144]
[1760286677386,2.9941,4075.1,4075.0,0.44144]
[1760286677783,5.83455466,4075.1,4074.8,0.44146]
[1760286677983,0.44146,4074.9,4074.5,3.2078]
[1760286678190,2.9941,4074.5,4073.9,3.2078]
[1760286678493,0.44154,4074.2,4073.9,3.2078]
[1760286678689,1.197,4074.0,4072.8,3.2078]
[1760286678890,2.9941,4073.7,4073.3,3.2078]
[1760286679194,2.66780719,4073.9,4073.6,0.44159]
[1760286679384,1.63862,4073.5,4073.0,0.44166]
[1760286679594,0.44163,4073.4,4072.8,3.64948]
[1760286679790,0.44163,4073.4,4072.8,3.65185967]
[1760286679791,3.10943719,4073.4,4072.8,3.65185967]
[1760286679992,0.44164,4073.3,4072.8,3.65185967]
[1760286680196,2.66780719,4073.4,4073.0,0.44166]
[1760286680393,1.197,4073.5,4073.1,0.44165]
[1760286680394,2.57655599,4073.2,4073.1,0.44165]
[1760286680591,2.9941,4073.8,4073.6,0.4416]
[1760286680791,2.9941,4073.9,4073.6,0.4416]
[1760286681093,5.83182187,4073.7,4073.6,0.4416]
[1760286681290,2.9941,4073.7,4073.6,0.4416]
[1760286681488,2.83772187,4073.7,4073.4,0.44161]
[1760286681787,0.44158,4073.8,4073.5,0.44161]
[1760286681992,2.9941,4073.8,4073.5,0.44161]
[1760286682290,3.20558708,4073.7,4073.3,0.44163]
[1760286682588,2.76399708,4073.8,4073.3,1.10409]
[1760286682792,2.76399708,4073.8,4073.4,3.0013]
[1760286682988,3.2078,4074.3,4073.4,3.0013]
[1760286682989,2.51760782,4074.0,4073.9,0.44156]
[1760286683187,2.62605339,4073.8,4073.4,0.44162]
[1760286683393,2.62605339,4073.8,4073.2,3.2078]
[1760286683394,0.44159,4073.7,4073.3,0.44163]
[1760286683599,2.9941,4073.8,4073.5,0.44161]
[1760286683896,2.9941,4074.2,4073.8,0.44157]
[1760286684197,2.58551982,4073.9,4073.7,0.44158]
[1760286684499,0.44157,4073.9,4073.5,0.44161]
[1760286684703,2.9941,4073.8,4073.2,3.2078]
[1760286684894,0.4416,4073.6,4073.3,0.44163]
[1760286685094,2.9941,4073.5,4073.3,0.44163]
[1760286685294,2.9941,4073.4,4073.3,0.44163]
[1760286685498,2.6671082,4073.5,4073.3,0.44163]
[1760286685695,3.2078,4074.3,4073.3,6.27254765]
[1760286685896,2.9941,4074.2,4074.1,0.44154]
[1760286686199,5.65934547,4074.2,4074.1,0.44154]
[1760286687107,2.9941,4074.2,4074.1,0.44154]
[1760286687399,3.2078,4074.3,4074.2,3.0013]
[1760286687591,5.2e-06,4075.2,4075.1,0.44144]
[1760286687790,5.2e-06,4075.2,4075.1,3.64924]
[1760286690895,2.9941,4076.9,4076.8,0.44125]
[1760286691100,2.9941,4076.9,4075.8,1.10339]
[1760286691101,2.9941,4076.9,4076.6,0.44126]
[1760286691291,2.56861819,4076.9,4076.6,0.44126]
[1760286691498,2.9941,4076.8,4076.7,0.44125]
[1760286691700,2.9941,4076.8,4076.5,3.2078]
[1760286691701,2.56861819,4076.9,4076.5,3.2078]
[1760286691998,0.44127,4076.6,4076.5,3.21075347]
[1760286692199,2.9941,4076.6,4076.5,0.00295347]
[1760286692396,5.65890761,4076.6,4076.5,0.00295347]
[1760286696915,3.1842,4075.6,4075.5,0.44139]
[1760286697411,3.1842,4075.5,4075.3,0.44141]
[1760286697710,3.1842,4075.5,4075.2,3.2078]
[1760286697711,3.1842,4075.5,4075.4,0.4414]
[1760286697907,1.1732,4076.0,4075.8,0.44135]
[1760286698109,3.1842,4076.4,4076.3,0.4413]
[1760286698407,5.80247317,4076.4,4076.3,0.4413]
[1760286699008,2.61827317,4076.4,4076.1,0.44132]
[1760286699305,3.62551,4076.3,4076.0,0.44133]
[1760286699508,3.1842,4076.2,4076.1,0.44133]
[1760286699702,2.58741676,4076.2,4076.1,3.43393]
[1760286699902,3.18713106,4076.9,4076.8,0.44125]
[1760286700107,0.00293106,4076.9,4076.8,3.43385]
[1760286700811,6.27254765,4078.7,4076.8,3.43385]
[1760286700812,3.2078,4078.3,4078.1,0.44111]
[1760286701012,3.1842,4079.2,4078.2,6.2004]
[1760286701201,3.1842,4079.0,4078.8,0.44103]
[1760286701400,2.65380777,4078.9,4078.8,0.44103]
[1760286701711,0.22,4079.3,4078.8,0.44103]
[1760286701712,0.22,4079.3,4078.8,3.64883]
[1760286702014,0.0028161,4078.9,4078.8,3.65077871]
[1760286702504,0.22,4079.3,4079.2,0.44099]
[1760286702706,3.2078,4081.6,4080.5,1.0285]
[1760286702910,1.1732,4082.5,4081.5,6.27254765]
[1760286703205,1.1658,4082.0,4081.5,6.27254765]
[1760286703410,3.0429,4081.9,4081.5,6.71328765]
[1760286703601,3.0429,4081.8,4081.4,3.2078]
[1760286703802,1.1658,4081.5,4081.3,3.2078]
[1760286704000,3.0429,4081.4,4081.3,3.64857]
[1760286704207,2.61393979,4081.4,4081.3,9.92111765]
[1760286704514,3.0429,4081.4,4081.3,9.92111765]
[1760286705306,3.0429,4081.3,4081.2,0.44077]
[1760286705502,0.00224487,4081.9,4081.2,0.44077]
[1760286705503,0.00224487,4081.9,4081.6,0.44073]
[1760286705704,3.0429,4081.8,4081.7,3.2078]
[1760286705909,5.66202757,4081.8,4081.7,3.20997957]
[1760286706211,5.66202757,4081.8,4081.7,0.00217957]
[1760286706404,5.66202757,4081.8,4081.7,0.44289957]
[1760286706605,0.00224487,4081.9,4081.7,0.44289957]
[1760286707010,0.00224487,4081.9,4081.7,1.69199957]
[1760286707314,3.0429,4083.9,4082.6,1.2491]
[1760286707505,1.1658,4084.0,4083.6,3.2078]
[1760286707704,6.07841923,4083.8,4083.6,3.2078]
[1760286707905,3.0429,4083.7,4083.6,3.2078]
[1760286708219,5.62352876,4083.7,4083.6,3.2078]
[1760286708405,0.00212961,4083.7,4083.0,3.64837]
[1760286708611,3.0429,4084.4,4084.3,0.44043]
[1760286709014,3.0429,4084.9,4084.7,0.4404]
[1760286709409,3.0429,4084.9,4084.8,3.2078]
[1760286709410,5.7526819,4084.9,4084.8,3.2078]
[1760286709613,3.04532277,4084.9,4084.8,3.21034039]
[1760286709811,0.00242277,4084.9,4084.8,3.21034039]
[1760286710011,5.65111349,4084.9,4084.8,3.21034039]
[1760286710206,5.65111349,4084.9,4084.8,0.00254039]
[1760286710921,3.04532277,4084.9,4084.8,0.00254039]
[1760286711218,12.14875228,4084.9,4084.8,0.00254039]
[1760286711406,3.0429,4083.4,4083.3,3.2078]
[1760286711606,3.0429,4083.4,4082.8,3.2078]